[Event "Hungarian Youth-ch II 2024"]
[Site "Szolnok"]
[Date "2024.04.06"]
[Round "9.3"]
[White "Kincses, Emma"]
[Black "Balazs, Szabina Zoe"]
[Result "0-1"]
[ECO "A05"]
[WhiteElo "1659"]
[BlackElo "1756"]
[Annotator "NA RC"]
[PlyCount "158"]
[EventDate "2024.03.31"]
[EventType "swiss"]
[EventCountry "HUN"]
[SourceTitle "playchess.com"]
[Source "ChessBase"]
[SourceQuality "1"]
[TimeControl "5400+30"]

1. Nf3 {[%emt 0:00:02]} Nf6 {[%emt 0:00:25]} 2. g3 {[%emt 0:00:05]} e6 {[%emt 0:00:16]} 3. Bg2 {[%emt 0:00:20]} Be7 {[%emt 0:01:22]} 4. O-O {[%emt 0:00:08]} d5 {[%emt 0:00:26]} 5. d4 {[%emt 0:00:06]} O-O {[%emt 0:01:07]} 6. b3 {[%emt 0:00:17]} b6 {[%emt 0:02:46]} 7. Bb2 {[%emt 0:00:07]} Bb7 {[%emt 0:00:05]} 8. c4 {[%emt 0:00:14]} c5 {[%emt 0:01:05]} 9. Nbd2 {[%emt 0:00:49]} Nbd7 {[%emt 0:00:55]} 10. Rc1 {[%emt 0:00:24]} Rc8 {[%emt 0:00:31]} 11. Re1 {[%emt 0:03:18]} Rc7 {[%emt 0:04:43]} 12. Rc2 {[%emt 0:04:20]} Qa8 {[%emt 0:01:54]} 13. dxc5 {[%emt 0:02:48]} Nxc5 {[%emt 0:03:09]} 14. Bxf6 {[%emt 0:01:08]} Bxf6 {[%emt 0:00:21]} 15. cxd5 {[%emt 0:00:09]} Bxd5 {[%emt 0:00:44]} 16. e4 {[%emt 0:01:09]} Bb7 {[%emt 0:05:00]} 17. b4 {[%emt 0:02:51]} Na6 {[%emt 0:00:12]} 18. Rxc7 {[%emt 0:07:04]} Nxc7 {[%emt 0:00:20]} 19. Qb3 {[%emt 0:00:43]} b5 {[%emt 0:06:01]} 20. Rc1 {[%emt 0:03:49]} Rc8 {[%emt 0:05:09]} 21. Qd3 {[%emt 0:07:42]} Rd8 {[%emt 0:05:57]} 22. Qe2 {[%emt 0:01:00]} Rc8 {[%emt 0:07:19]} 23. Qd3 {[%emt 0:00:20]} a6 {[%emt 0:09:23]} 24. Qe3 {[%emt 0:16:16]} Be7 {[%emt 0:11:08]} 25. Qd4 {[%emt 0:18:14]} Ne8 {[%emt 0:03:59]} 26. Rd1 {[%emt 0:08:33]} Rd8 {[%emt 0:03:25]} 27. Qb2 {[%emt 0:03:52]} Bxe4 {[%emt 0:01:46]} 28. Qb3 {[%emt 0:00:23]} Bd5 {[%emt 0:02:59]} 29. Qb1 {[%emt 0:01:20]} Nd6 {[%emt 0:04:26]} 30. a3 {[%emt 0:02:59]} h6 {[%emt 0:01:18]} 31. Ne1 {[%emt 0:02:27]} Bxg2 {[%emt 0:05:06]} 32. Nxg2 {[%emt 0:00:15]} a5 {[%emt 0:01:35]} 33. Ne3 {[%emt 0:01:47]} axb4 {[%emt 0:02:43]} 34. axb4 {[%emt 0:00:07]} Qa4 {[%emt 0:03:18]} 35. Qb3 {[%emt 0:00:45]} Ra8 {[%emt 0:05:13]} 36. Qc3 {[%emt 0:01:15]} Rc8 {[%emt 0:01:41]} 37. Qb3 {[%emt 0:00:28]} Ra8 {[%emt 0:00:37]} 38. Qc3 {[%emt 0:00:08]} Rc8 {[%emt 0:00:09]} 39. Qb3 {[%emt 0:00:24]} Qxb3 {[%emt 0:00:04]} 40. Nxb3 {[%emt 0:00:09]} Nc4 {[%emt 0:00:52]} 41. Nd4 {[%emt 0:00:42]} Nxe3 {[%emt 0:00:47]} 42. fxe3 {[%emt 0:00:17]} Bxb4 {[%emt 0:00:42]} 43. Nxb5 {[%emt 0:00:11]} Kh7 {[%emt 0:00:26]} 44. Nd4 {[%emt 0:00:15]} Kg6 {[%emt 0:00:14]} 45. Kg2 {[%emt 0:00:25]} Rd8 {[%emt 0:00:45]} 46. Rf1 {[%emt 0:00:31]} Bc5 {[%emt 0:00:12]} 47. Nc2 {[%emt 0:00:37]} f5 {[%emt 0:00:48]} 48. Kf3 {[%emt 0:00:53]} Rf8 {[%emt 0:00:36]} 49. Ne1 {[%emt 0:00:26]} e5 {[%emt 0:00:14]} 50. Ng2 {[%emt 0:00:27]} Kh7 {[%emt 0:00:30]} 51. Rc1 {[%emt 0:00:37]} e4+ {[%emt 0:00:32]} 52. Ke2 {[%emt 0:00:37]} Bd6 {[%emt 0:00:22]} 53. Nf4 {[%emt 0:00:35]} Bxf4 {[%emt 0:00:47]} 54. exf4 {[%emt 0:00:07]} g5 {[%emt 0:00:23]} 55. Ke3 {[%emt 0:00:38]} Rd8 {[%emt 0:00:37]} 56. Rc3 {[%emt 0:01:37]} Kg6 {[%emt 0:00:20]} 57. h3 {[%emt 0:01:02]} Rd6 {[%emt 0:00:38]} 58. g4 {[%emt 0:00:46]} fxg4 {[%emt 0:00:35]} 59. Kxe4 {[%emt 0:00:13]} gxh3 {[%emt 0:00:29]} 60. Rxh3 {[%emt 0:00:20]} Rf6 {[%emt 0:00:26]} 61. fxg5 {[%emt 0:00:44]} hxg5 {[%emt 0:00:17]} 62. Rf3 {[%emt 0:00:34]} Re6+ {[%emt 0:00:35]} 63. Kd5 {[%emt 0:00:23]} Re1 {[%emt 0:00:08]} 64. Rg3 {[%emt 0:01:20]} Kf5 {[%emt 0:00:17]} 65. Kd4 {[%emt 0:00:09]} Kf4 {[%emt 0:00:18]} 66. Rg2 {[%emt 0:00:16]} g4 {[%emt 0:00:16]} 67. Kd3 {[%emt 0:00:14]} Kf3 {[%emt 0:00:14]} 68. Rc2 {[%emt 0:01:53]} g3 {[%emt 0:00:30]} 69. Rc6 {[%emt 0:00:35]} g2 {[%emt 0:00:13]} 70. Rf6+ {[%emt 0:00:06]} Kg3 {[%emt 0:00:07]} 71. Rg6+ {[%emt 0:00:08]} Kh2 {[%emt 0:00:08]} 72. Rh6+ {[%emt 0:00:24]} Kg1 {[%emt 0:00:06]} 73. Kd2 {[%emt 0:00:25]} Re5 {[%emt 0:00:19]} 74. Rh7 {[%emt 0:00:57]} Kf2 {[%emt 0:00:17]} 75. Rf7+ {[%emt 0:00:10]} Kg3 {[%emt 0:00:21]} 76. Rg7+ {[%emt 0:00:07]} Kh3 {[%emt 0:00:25]} 77. Rh7+ {[%emt 0:00:10]} Kg4 {[%emt 0:00:10]} 78. Rg7+ {[%emt 0:00:15]} Rg5 {[%emt 0:00:11]} 79. Rxg5+ {[%emt 0:00:28]} Kxg5 {[%emt 0:00:05]} 0-1

[Event "Hungarian Youth-ch II 2024"]
[Site "Szolnok"]
[Date "2024.04.06"]
[Round "9.4"]
[White "Csiszar, Vivien"]
[Black "Hangyal, Anna"]
[Result "0-1"]
[ECO "B30"]
[WhiteElo "1607"]
[BlackElo "1766"]
[Annotator "NA RC"]
[PlyCount "76"]
[EventDate "2024.03.31"]
[EventType "swiss"]
[EventCountry "HUN"]
[SourceTitle "playchess.com"]
[Source "ChessBase"]
[SourceQuality "1"]
[TimeControl "5400+30"]

1. e4 {[%emt 0:00:03]} c5 {[%emt 0:00:06]} 2. Nf3 {[%emt 0:00:23]} Nc6 {[%emt 0:00:07]} 3. d3 {[%emt 0:00:11]} e6 {[%emt 0:00:27]} 4. g3 {[%emt 0:00:32]} d5 {[%emt 0:00:24]} 5. Nbd2 {[%emt 0:00:51]} Nf6 {[%emt 0:02:51]} 6. Bg2 {[%emt 0:01:54]} Be7 {[%emt 0:03:18]} 7. O-O {[%emt 0:02:20]} O-O {[%emt 0:00:13]} 8. a3 {[%emt 0:00:55]} Bd7 {[%emt 0:01:10]} 9. h3 {[%emt 0:01:19]} Qc7 {[%emt 0:10:54]} 10. Nh2 {[%emt 0:04:03]} dxe4 {[%emt 0:09:34]} 11. dxe4 {[%emt 0:04:13]} e5 {[%emt 0:01:08]} 12. f4 {[%emt 0:07:32]} exf4 {[%emt 0:00:12]} 13. gxf4 {[%emt 0:00:28]} Kh8 {[%emt 0:02:06]} 14. e5 {[%emt 0:03:53]} Ng8 {[%emt 0:00:12]} 15. Ne4 {[%emt 0:06:21]} f6 {[%emt 0:02:14]} 16. Nf3 {[%emt 0:04:09]} Rad8 {[%emt 0:01:30]} 17. Nd6 {[%emt 0:06:58]} Nh6 {[%emt 0:03:38]} 18. Be3 {[%emt 0:16:23]} fxe5 {[%emt 0:02:32]} 19. fxe5 {[%emt 0:00:15]} Nf5 {[%emt 0:16:08]} 20. Bxc5 {[%emt 0:02:25]} b6 {[%emt 0:00:10]} 21. Bf2 {[%emt 0:03:28]} Nxd6 {[%emt 0:00:22]} 22. exd6 {[%emt 0:00:17]} Bxd6 {[%emt 0:00:13]} 23. Bh4 {[%emt 0:02:45]} Rde8 {[%emt 0:07:39]} 24. Ng5 {[%emt 0:02:25]} Bf5 {[%emt 0:04:33]} 25. Qd5 {[%emt 0:01:58]} Bc5+ {[%emt 0:02:08]} 26. Kh1 {[%emt 0:00:41]} Nd4 {[%emt 0:00:25]} 27. c3 {[%emt 0:02:39]} Re5 {[%emt 0:00:44]} 28. Qc4 {[%emt 0:00:57]} b5 {[%emt 0:03:37]} 29. Qa2 {[%emt 0:00:39]} Nc2 {[%emt 0:02:39]} 30. Rac1 {[%emt 0:01:30]} Ne3 {[%emt 0:02:58]} 31. Rf2 {[%emt 0:01:03]} Nxg2 {[%emt 0:02:28]} 32. Rxg2 {[%emt 0:01:19]} h6 {[%emt 0:00:40]} 33. Nf3 {[%emt 0:01:14]} Be4 {[%emt 0:01:14]} 34. Nxe5 {[%emt 0:00:57]} Bxg2+ {[%emt 0:00:28]} 35. Kxg2 {[%emt 0:00:14]} Qxe5 {[%emt 0:00:07]} 36. Re1 {[%emt 0:00:57]} Qh5 {[%emt 0:00:52]} 37. Bg3 {[%emt 0:01:02]} Qf3+ {[%emt 0:00:18]} 38. Kh2 {[%emt 0:01:03]} Bf2 {[%emt 0:00:09]} 0-1

[Event "Hungarian Youth-ch II 2024"]
[Site "Szolnok"]
[Date "2024.04.06"]
[Round "9.9"]
[White "Kiss, Villo"]
[Black "Vasarhelyi, Szurina"]
[Result "1-0"]
[ECO "A04"]
[WhiteElo "1519"]
[BlackElo "1446"]
[Annotator "NA RC"]
[PlyCount "67"]
[EventDate "2024.03.31"]
[EventType "swiss"]
[EventCountry "HUN"]
[SourceTitle "playchess.com"]
[Source "ChessBase"]
[SourceQuality "1"]
[TimeControl "5400+30"]

1. Nf3 {[%emt 0:00:02]} Nc6 {[%emt 0:00:25]} 2. d4 {[%emt 0:00:08]} d5 {[%emt 0:00:07]} 3. g3 {[%emt 0:00:08]} Bf5 {[%emt 0:00:38]} 4. Bg2 {[%emt 0:00:20]} Nf6 {[%emt 0:02:00]} 5. O-O {[%emt 0:00:24]} e6 {[%emt 0:02:04]} 6. c4 {[%emt 0:01:29]} Be7 {[%emt 0:08:01]} 7. Nc3 {[%emt 0:05:01]} Ne4 {[%emt 0:03:49]} 8. Bf4 {[%emt 0:13:41]} Nxc3 {[%emt 0:08:36]} 9. bxc3 {[%emt 0:00:22]} O-O {[%emt 0:01:38]} 10. Qb3 {[%emt 0:03:44]} Rb8 {[%emt 0:02:43]} 11. Nd2 {[%emt 0:05:26]} Bg5 {[%emt 0:04:20]} 12. Bxg5 {[%emt 0:00:47]} Qxg5 {[%emt 0:00:26]} 13. f4 {[%emt 0:01:59]} Qh5 {[%emt 0:01:13]} 14. cxd5 {[%emt 0:07:50]} exd5 {[%emt 0:01:25]} 15. Qxd5 {[%emt 0:00:40]} Qxe2 {[%emt 0:01:42]} 16. Rf2 {[%emt 0:04:25]} Qe6 {[%emt 0:00:55]} 17. Qxe6 {[%emt 0:02:12]} Bxe6 {[%emt 0:00:19]} 18. d5 {[%emt 0:00:15]} Rfd8 {[%emt 0:00:56]} 19. dxe6 {[%emt 0:02:04]} fxe6 {[%emt 0:00:11]} 20. Re1 {[%emt 0:00:40]} Rd3 {[%emt 0:01:42]} 21. Rxe6 {[%emt 0:01:32]} Rxc3 {[%emt 0:00:13]} 22. Bd5 {[%emt 0:00:49]} Kh8 {[%emt 0:01:25]} 23. Rfe2 {[%emt 0:01:00]} g6 {[%emt 0:01:39]} 24. Re8+ {[%emt 0:01:14]} Rxe8 {[%emt 0:00:21]} 25. Rxe8+ {[%emt 0:00:24]} Kg7 {[%emt 0:00:02]} 26. Ne4 {[%emt 0:03:20]} Re3 {[%emt 0:00:38]} 27. Rg8+ {[%emt 0:01:45]} Kh6 {[%emt 0:00:23]} 28. g4 {[%emt 0:00:46]} Ne7 {[%emt 0:00:42]} 29. g5+ {[%emt 0:01:13]} Kh5 {[%emt 0:00:10]} 30. Nf6+ {[%emt 0:00:28]} Kh4 {[%emt 0:00:47]} 31. Rg7 {[%emt 0:01:06]} Re1+ {[%emt 0:00:31]} 32. Kf2 {[%emt 0:00:21]} Re2+ {[%emt 0:00:17]} 33. Kxe2 {[%emt 0:00:22]} Kh3 {[%emt 0:00:10]} 34. Rxh7# {[%emt 0:00:16]} 1-0